bitfinex/quotes_SOLUSD_20250228
["timestamp","ask_amount","ask_price","bid_price","bid_amount"]
[1740769501315,82.26792401,146.96,146.94,0.0001]
[1740769501517,90.51996157,146.95,146.94,0.0001]
[1740769501709,0.14216157,146.92,146.88,0.03]
[1740769501931,82.12576244,146.91,146.88,0.03]
[1740769502131,80.7,146.91,146.88,0.03]
[1740769502322,86.9204,146.99,146.88,0.03]
[1740769502615,0.14216157,146.96,146.88,47.8339289]
[1740769502815,82.12576244,146.95,146.88,0.03]
[1740769503023,80.7,146.95,146.88,0.03]
[1740769503217,86.9204,146.99,146.88,192.4891289]
[1740769503428,80.7,146.99,146.88,192.4891289]
[1740769503619,80.7,146.99,146.89,0.14216157]
[1740769503838,80.7,146.99,146.9,1.5426]
[1740769504134,80.7,147.02,146.91,0.14216157]
[1740769504334,5.60208615,147.06,146.98,2.0]
[1740769504536,7.8004,147.16,146.99,12.64987996]
[1740769504717,7.8004,147.16,147.0,2.0]
[1740769505039,4.0,147.21,147.04,0.14216157]
[1740769505220,1.48876244,147.2,147.05,7.08]
[1740769505420,0.14216157,147.19,147.05,7.08]
[1740769505629,0.063,147.2,147.07,2.0]
[1740769505822,0.063,147.2,147.08,0.14216157]
[1740769506424,1.48876244,147.2,147.07,185.8039289]
[1740769506738,0.063,147.2,147.07,185.8039289]
[1740769506938,0.20516157,147.2,147.07,185.8039289]
[1740769507134,2.063,147.2,147.07,185.8039289]
[1740769507439,2.0,147.18,147.08,7.08]
[1740769507635,0.14216157,147.17,147.08,7.08]
[1740769507837,0.14216157,147.17,147.08,319.08]
[1740769508040,0.063,147.2,147.08,319.08]
[1740769508227,2.0,147.19,147.08,319.08]
[1740769508425,0.20516157,147.2,147.08,319.08]
[1740769508616,2.20516157,147.2,147.08,319.08]
[1740769508817,0.20516157,147.2,147.08,319.08]
[1740769509022,1.63092401,147.2,147.08,319.08]
[1740769509323,0.063,147.2,147.09,1.56940003]
[1740769509639,0.063,147.2,147.12,0.14216157]
[1740769509950,0.063,147.2,147.14,0.14216157]
[1740769510149,0.063,147.2,147.16,0.14216157]
[1740769510358,0.063,147.2,147.17,1.42624561]
[1740769510546,0.063,147.2,147.18,0.14216157]
[1740769510748,0.063,147.2,147.16,138.0]
[1740769511054,0.063,147.2,147.17,3.13516809]
[1740769511237,0.063,147.2,147.17,5.13516809]
[1740769511438,0.063,147.2,147.19,20.0]
[1740769511636,0.063,147.26,147.21,8.59826157]
[1740769511847,0.063,147.26,147.23,0.14216157]
[1740769512147,0.063,147.26,147.24,1.42548516]
[1740769512331,0.063,147.26,147.25,312.0]
[1740769512527,0.063,147.26,147.25,312.14216157]
[1740769513261,0.063,147.26,147.25,450.14216157]
[1740769513445,0.063,147.26,147.25,452.14216157]
[1740769513629,0.063,147.3,147.25,140.14216157]
[1740769513820,0.063,147.3,147.27,0.14216157]
[1740769514022,0.063,147.3,147.27,187.94609047]
[1740769514731,0.063,147.3,147.27,189.94609047]
[1740769515343,0.063,147.3,147.27,185.94609047]
[1740769515933,0.063,147.3,147.26,138.0]
[1740769516149,0.063,147.3,147.26,145.08]
[1740769516743,0.063,147.3,147.26,192.8839289]
[1740769518531,0.063,147.3,147.27,0.14216157]
[1740769518737,0.063,147.3,147.27,1.56760034]
[1740769519251,0.063,147.3,147.26,192.8839289]
[1740769519732,0.063,147.3,147.26,47.8039289]
[1740769519932,0.063,147.3,147.25,7.08]
[1740769521249,0.063,147.3,147.25,7.11]
[1740769521752,0.063,147.3,147.26,0.14216157]
[1740769521943,0.063,147.3,147.27,1.56737837]
[1740769522549,0.063,147.3,147.27,1.4252168]
[1740769522730,0.063,147.3,147.26,185.8039289]
[1740769523355,0.063,147.3,147.26,47.8039289]
[1740769524755,0.063,147.3,147.25,145.09]
[1740769524756,0.063,147.3,147.25,0.03]
[1740769525258,80.763,147.3,147.25,0.03]
[1740769525844,0.063,147.3,147.25,0.03]
[1740769526255,0.063,147.3,147.25,185.8339289]
[1740769527465,0.063,147.3,147.25,47.8339289]
[1740769528338,0.063,147.3,147.25,0.03]
[1740769528538,0.063,147.3,147.25,0.0001]
[1740769528743,2.063,147.3,147.25,0.0001]
[1740769528952,3.48876244,147.28,147.25,0.0001]
[1740769529143,80.84216157,147.27,147.25,0.0001]
[1740769529834,0.14216157,147.25,147.14,7.06]
[1740769530034,0.14216157,147.25,147.14,54.8639289]
[1740769530251,82.7,147.24,147.14,54.8639289]
[1740769530452,0.14216157,147.2,147.12,47.8039289]
[1740769531138,82.84216157,147.2,147.09,192.8639289]
[1740769531340,2.14216157,147.18,147.09,54.8639289]
[1740769531641,0.14216157,147.18,147.09,54.8639289]
[1740769531840,1.5774,147.23,147.11,0.14216157]
[1740769532134,1.5774,147.23,147.11,187.37273833]
[1740769532350,1.5774,147.23,147.11,185.94609047]
[1740769532538,8.7673,147.28,147.14,2.14216157]
[1740769532742,1.7073,147.28,147.16,2.14216157]
[1740769532952,1.7073,147.28,147.18,0.14216157]
[1740769533151,1.7073,147.28,147.18,208.40609047]
[1740769533357,0.063,147.28,147.2,0.14216157]
[1740769533652,0.063,147.28,147.21,7.06]
[1740769533852,0.063,147.28,147.22,0.14216157]
[1740769534152,0.063,147.28,147.21,192.8639289]
[1740769534367,0.063,147.28,147.21,54.8639289]
[1740769535444,0.063,147.28,147.21,192.8639289]
[1740769535845,0.063,147.28,147.22,0.14216157]
[1740769536149,0.063,147.28,147.22,1.56773111]
[1740769537264,0.063,147.28,147.22,8.36003111]
[1740769538064,0.063,147.28,147.23,312.0]
[1740769539343,0.063,147.28,147.24,8.35934506]
[1740769539544,0.063,147.28,147.24,185.94609047]
[1740769540568,0.063,147.28,147.24,187.94609047]
[1740769540861,0.063,147.28,147.26,0.14216157]
[1740769541073,0.063,147.28,147.27,7.06]
[1740769541278,0.063,147.28,147.27,192.8639289]
[1740769541856,0.063,147.28,147.27,185.8039289]
[1740769542744,0.063,147.3,147.27,185.8039289]
[1740769544458,0.063,147.3,147.23,54.8639289]
[1740769545448,0.063,147.3,147.23,47.8039289]
[1740769545651,0.20516157,147.3,147.23,47.8039289]
[1740769546947,0.063,147.3,147.23,185.8039289]
[1740769547148,0.063,147.3,147.24,1.56769965]
[1740769547359,0.063,147.3,147.26,312.14216157]
[1740769547565,0.063,147.3,147.27,13.8501]
[1740769549066,0.063,147.3,147.27,192.8639289]
[1740769549268,0.063,147.3,147.27,54.8639289]
[1740769549468,0.063,147.3,147.24,47.8039289]
[1740769549771,0.20516157,147.3,147.24,47.8039289]
[1740769550270,0.063,147.3,147.24,47.8039289]
[1740769552065,0.063,147.3,147.24,194.0208969]
[1740769552268,0.063,147.3,147.25,0.14216157]
[1740769552657,0.063,147.3,147.24,185.8039289]
[1740769553675,0.063,147.3,147.24,47.8039289]
[1740769553966,0.20516157,147.3,147.24,47.8039289]
[1740769554170,0.063,147.3,147.24,47.8039289]
[1740769555382,1.77196157,147.3,147.24,47.8039289]
[1740769555670,1.77196157,147.3,147.18,13.6009]
[1740769555671,1.42576244,147.29,147.18,199.4048289]
[1740769555876,82.12576244,147.29,147.18,61.4048289]
[1740769556055,80.7,147.29,147.18,61.4048289]
[1740769557076,0.14216157,147.24,147.16,47.8039289]
[1740769557383,80.7,147.23,147.16,47.8039289]
[1740769559060,0.14216157,147.22,147.16,47.8039289]
[1740769559863,80.7,147.23,147.16,47.8039289]
[1740769560659,0.14216157,147.22,147.16,47.8039289]
[1740769560970,82.42116157,147.22,147.13,47.8039289]
[1740769561367,2.14216157,147.2,147.13,47.8039289]
[1740769561579,0.14216157,147.17,147.11,47.8339289]
[1740769561782,80.84216157,147.17,147.11,0.03]
[1740769561973,82.26792401,147.17,147.11,0.03]
[1740769562179,0.14216157,147.15,147.11,0.03]
[1740769562690,0.14216157,147.15,147.11,0.0001]
[1740769562691,0.14216157,147.13,147.11,0.0001]
[1740769562985,80.7,147.13,147.09,0.0001]
[1740769563187,8.1733,147.18,147.09,54.8640289]
[1740769563397,8.1733,147.18,147.09,192.8640289]
[1740769563986,8.1733,147.18,147.09,504.8640289]
[1740769564370,80.84216157,147.17,147.09,359.8040289]
[1740769564576,80.84216157,147.17,147.09,47.8040289]
[1740769564793,80.7,147.17,147.09,47.8040289]
[1740769565091,14.8123,147.22,147.1,8.10911062]
[1740769565290,0.14216157,147.2,147.11,7.06]
[1740769565475,0.14216157,147.18,147.1,47.8039289]
[1740769565793,0.14216157,147.16,147.1,47.8039289]
[1740769566571,0.14216157,147.14,147.09,0.0001]
[1740769566768,0.14216157,147.12,147.09,0.0001]
[1740769566971,0.14216157,147.1,147.09,0.0001]
[1740769567582,11.20216157,147.1,147.0,47.8039289]
[1740769567777,0.14216157,147.06,146.97,47.8039289]
[1740769567989,1.42576244,147.05,146.97,47.8039289]
[1740769568296,0.14216157,147.04,146.94,54.8639289]
[1740769568499,0.14216157,147.02,146.94,54.8639289]
[1740769569374,0.14216157,147.02,146.94,54.8939289]
[1740769570397,1.42576244,147.01,146.94,54.8939289]
[1740769570593,1.42576244,147.01,146.94,47.8339289]
[1740769570909,0.14216157,147.0,146.94,0.03]
[1740769571082,0.14216157,146.97,146.88,54.9139289]
[1740769571418,0.14216157,146.95,146.88,0.03]
[1740769571577,0.14216157,146.93,146.88,0.03]
[1740769573086,1.64426157,146.94,146.88,0.03]
[1740769573394,0.14216157,146.92,146.88,0.03]
[1740769573702,88.60596244,146.93,146.88,0.03]
[1740769573703,0.14216157,146.9,146.88,0.03]
[1740769574085,0.14216157,146.91,146.88,0.03]
[1740769574701,80.7,146.92,146.88,0.03]
[1740769574893,82.2021,146.94,146.88,0.03]
[1740769575087,80.7,146.94,146.88,0.03]
[1740769575310,6.3153,146.98,146.88,47.8339289]
[1740769575601,0.14216157,146.94,146.88,0.03]
[1740769575806,82.12576244,146.93,146.88,0.03]
[1740769576585,80.7,146.93,146.88,0.03]
[1740769577084,6.3153,146.98,146.88,0.03]
[1740769577085,80.7,146.97,146.88,0.03]
[1740769577391,3.42576244,146.96,146.88,0.03]
[1740769577585,0.14216157,146.95,146.88,0.03]
[1740769577803,82.12576244,146.95,146.88,0.03]
[1740769578004,87.92216157,146.94,146.88,0.03]
[1740769578304,0.14216157,146.92,146.88,0.03]
[1740769578507,3.42576244,146.93,146.88,0.03]
[1740769578508,0.14216157,146.9,146.88,0.03]
[1740769579097,80.7,146.91,146.88,0.03]
[1740769584624,0.14216157,146.95,146.88,0.03]
[1740769584792,0.14216157,146.95,146.88,47.8339289]
[1740769584989,80.7,146.96,146.88,47.8339289]
[1740769585601,0.063,146.97,146.88,138.03]
[1740769587318,1.48876244,146.97,146.88,81.03]
[1740769587493,0.14216157,146.95,146.88,81.03]
[1740769588012,80.7,146.96,146.88,81.03]
[1740769588208,80.7,146.96,146.88,393.03]
[1740769589292,0.14216157,146.95,146.88,0.03]
[1740769589490,0.063,146.97,146.88,219.03]
[1740769589711,0.063,146.97,146.88,225.838]
[1740769589903,0.063,146.97,146.89,1.4288812]
[1740769590104,0.063,146.97,146.88,219.03]
[1740769591510,0.063,146.97,146.88,225.8382]
[1740769592307,0.063,146.97,146.89,318.8076]
[1740769592902,0.063,146.97,146.89,537.8076]
[1740769593216,0.063,146.97,146.91,1.5592]
[1740769593413,0.063,146.97,146.92,7.08]
[1740769594101,0.063,146.97,146.89,81.0]
[1740769594413,0.063,146.97,146.89,87.8077]
[1740769594625,0.063,146.97,146.89,81.0]
[1740769594806,0.14216157,146.96,146.89,81.0]
[1740769596614,0.14216157,146.96,146.88,0.03]
[1740769596813,0.14216157,146.94,146.88,0.03]
[1740769597404,80.7,146.95,146.88,0.03]
[1740769597801,0.063,146.97,146.88,81.03]
[1740769598110,0.14216157,146.95,146.88,81.03]
[1740769599424,0.14216157,146.93,146.88,0.03]
[1740769600120,80.7,146.94,146.88,0.03]
[1740769601414,0.063,146.97,146.88,219.03]
[1740769601715,0.063,146.97,146.89,7.08]
[1740769602118,0.063,146.97,146.89,232.8877]
[1740769602325,0.063,146.97,146.9,6.2281]
[1740769603012,0.063,146.97,146.89,226.08]
[1740769603013,0.063,146.97,146.89,7.08]
[1740769603211,0.063,146.97,146.88,0.03]
[1740769603212,0.14216157,146.95,146.88,0.03]
[1740769603402,0.14216157,146.93,146.88,0.03]
[1740769604726,80.7,146.96,146.88,0.03]
[1740769604920,0.063,146.97,146.88,0.03]
[1740769605303,0.063,146.97,146.89,0.14216157]
[1740769605623,0.063,146.97,146.9,2.93514969]
[1740769605819,0.063,146.97,146.91,7.08]
[1740769606004,0.063,146.97,146.91,226.08]
[1740769607110,0.063,146.97,146.91,544.8868]
[1740769608013,0.063,146.97,146.92,7.61339295]
[1740769608416,0.063,146.97,146.92,7.61330912]
[1740769608613,0.063,146.97,146.93,6.8059]
[1740769609318,0.063,146.97,146.94,1.42848793]
[1740769609506,0.063,146.97,146.95,0.14216157]
[1740769609715,0.063,146.97,146.96,1.42814921]
[1740769610126,0.063,146.97,146.96,220.42814921]
[1740769610326,0.063,146.97,146.96,219.0]
[1740769610705,0.063,146.97,146.96,225.8045]
[1740769610917,0.063,146.97,146.96,537.8045]
[1740769611227,3.01906244,147.11,146.99,1.75336157]
[1740769611228,1.5933,147.11,146.99,1.75336157]
[1740769611405,5.53602834,147.12,147.01,2.14216157]
[1740769611611,0.063,147.12,147.02,1.42745786]
[1740769611829,0.063,147.12,147.02,220.42745786]
[1740769612009,0.063,147.12,147.02,219.0]
[1740769612726,0.063,147.12,147.02,81.0]
[1740769613309,0.20516157,147.12,147.02,81.0]
[1740769613521,0.20516157,147.12,147.02,227.22917705]
[1740769613522,0.063,147.12,147.02,227.22917705]
[1740769613718,0.063,147.12,147.02,219.0]
[1740769614423,0.063,147.12,147.02,537.8017]
[1740769614610,0.063,147.12,147.02,531.0]
[1740769614924,0.14216157,147.1,147.02,393.0]
[1740769615125,0.14216157,147.1,147.02,81.0]
[1740769615324,0.14216157,147.08,147.02,81.0]
[1740769615525,80.7,147.07,146.98,87.2879]
[1740769615728,1.56792401,147.08,146.98,87.2879]
[1740769615729,0.14216157,147.05,146.98,87.2879]
[1740769616812,80.7,147.06,146.98,94.0913]
[1740769617208,0.14216157,147.07,146.98,94.0913]
[1740769617409,0.14216157,147.07,146.98,87.2879]
[1740769618108,0.14216157,147.07,146.98,399.2879]
[1740769618305,0.14216157,147.07,146.98,87.2879]
[1740769620127,1.42576244,147.06,146.98,87.2879]
[1740769620327,1.42576244,147.06,146.98,81.0]
[1740769620328,0.14216157,147.05,146.98,81.0]
[1740769620648,80.7,147.04,146.94,88.707]
[1740769620928,80.7,147.04,146.94,95.5123]
[1740769621129,80.7,147.09,146.98,312.0]
[1740769621321,0.14216157,147.08,146.99,7.08]
[1740769621721,80.7,147.09,147.01,6.6258]
[1740769621931,0.063,147.12,147.01,225.6258]
[1740769622446,0.063,147.12,147.03,1.5736]
[1740769622745,0.063,147.12,147.05,6.8004]
[1740769622922,0.063,147.12,147.06,7.08]
[1740769623540,0.063,147.12,147.05,81.0]
[1740769623741,0.20516157,147.12,147.05,81.0]
[1740769624527,0.063,147.12,147.05,81.0]
[1740769624946,0.20516157,147.12,147.05,81.0]
[1740769625533,0.063,147.12,147.05,81.0]
[1740769625736,0.20516157,147.12,147.05,81.0]
[1740769626546,0.063,147.12,147.06,1.42770715]
[1740769626727,0.063,147.12,147.08,6.94116157]
[1740769627039,0.063,147.16,147.11,1.5248]
[1740769627237,0.063,147.16,147.11,221.95146308]
[1740769627423,0.063,147.16,147.12,0.14216157]
[1740769627623,0.063,147.16,147.14,6.30976157]
[1740769627851,91.32467829,147.28,147.15,8.81974723]
[1740769628040,10.62467829,147.28,147.16,2.14216157]
[1740769628228,10.62467829,147.28,147.17,1.42600598]
[1740769628852,10.62467829,147.28,147.18,0.14216157]
[1740769629033,10.62467829,147.28,147.19,1.42590897]
[1740769629362,0.063,147.27,147.19,1.42590897]
[1740769629530,0.063,147.27,147.21,312.0]
[1740769629835,0.063,147.27,147.22,7.06]
[1740769630645,0.063,147.27,147.15,7.1291]
[1740769630646,0.063,147.27,147.18,7.06]
[1740769631028,1.56792401,147.26,147.18,7.06]
[1740769631234,0.14216157,147.26,147.18,7.06]
[1740769632154,80.7,147.25,147.18,7.06]
[1740769632325,80.7,147.25,147.15,81.0]
[1740769633047,0.14216157,147.24,147.15,81.0]
[1740769633249,0.14216157,147.22,147.14,6.1676]
[1740769633849,0.14216157,147.25,147.14,225.1676]
[1740769634055,80.84216157,147.25,147.14,225.1676]
[1740769634355,80.84216157,147.25,147.15,7.06]
[1740769637055,0.14216157,147.23,147.14,81.0]
[1740769637559,7.06,147.22,147.14,81.0]
[1740769637758,0.14216157,147.2,147.14,81.0]
[1740769637944,80.7,147.21,147.14,81.0]
[1740769639242,1.5017,147.24,147.14,219.0]
[1740769639449,0.063,147.23,147.14,225.7961]
[1740769639861,0.063,147.23,147.15,1.42637336]
[1740769640174,0.063,147.23,147.19,312.0]
[1740769640344,0.063,147.23,147.2,7.06]
[1740769641439,0.063,147.23,147.2,13.8533]
[1740769642336,0.063,147.23,147.2,15.2792089]
[1740769643650,0.063,147.23,147.2,327.2792089]
[1740769643968,0.063,147.23,147.2,544.8533]
[1740769644145,0.063,147.23,147.2,538.06]
[1740769644666,0.063,147.23,147.2,226.06]
[1740769645248,0.063,147.23,147.2,81.0]
[1740769647372,0.063,147.23,147.18,81.0]
[1740769648647,0.063,147.23,147.18,87.7942]
[1740769648859,0.063,147.23,147.18,81.0]
[1740769649446,0.063,147.23,147.18,225.7942]
[1740769650046,0.063,147.23,147.18,219.0]
[1740769650241,0.063,147.23,147.15,7.06]
[1740769650653,0.20516157,147.23,147.13,81.0]
[1740769651843,0.20516157,147.23,147.11,319.06]
[1740769652049,0.20516157,147.23,147.1,138.0]
[1740769652050,0.14216157,147.21,147.1,138.0]
[1740769652453,0.14216157,147.19,147.09,6.3913]
[1740769652653,0.14216157,147.19,147.08,7.06]
[1740769653270,0.14216157,147.17,147.08,7.06]
[1740769653768,1.65856157,147.15,147.04,7.06]
[1740769654771,1.65856157,147.15,147.04,13.8608]
[1740769654967,1.5164,147.15,147.04,325.8608]
[1740769655772,0.14216157,147.14,147.04,319.06]
[1740769656150,0.14216157,147.14,147.04,7.06]
[1740769657271,1.5896,147.2,147.05,1.42766836]
[1740769657455,1.5896,147.2,147.05,222.42766836]
[1740769657656,1.5896,147.2,147.06,2.14216157]
[1740769657868,1.5896,147.2,147.08,20.0]
[1740769658167,1.5896,147.2,147.09,1.42693204]
[1740769658362,0.14216157,147.19,147.1,7.06]
[1740769659286,0.14216157,147.19,147.1,319.06]
[1740769659653,1.5896,147.2,147.11,1.56936279]
[1740769659847,0.063,147.23,147.11,220.56936279]
[1740769660066,0.063,147.23,147.11,219.14216157]
[1740769660270,0.063,147.23,147.12,1.42669128]
[1740769660475,0.063,147.23,147.13,0.14216157]
[1740769660657,0.063,147.23,147.14,1.42641206]
[1740769660861,0.063,147.23,147.15,6.7957]
[1740769661069,0.063,147.23,147.16,7.06]
[1740769662769,0.063,147.23,147.16,319.06]
[1740769662977,0.063,147.23,147.16,538.06]
[1740769663172,0.063,147.23,147.16,226.06]
[1740769663475,0.063,147.23,147.17,1.42617457]
[1740769663682,0.063,147.23,147.17,219.0]
[1740769666178,0.063,147.23,147.17,81.0]
[1740769668083,0.063,147.23,147.15,7.06]
[1740769670791,0.063,147.23,147.14,81.0]
[1740769672274,0.063,147.23,147.14,219.0]
[1740769673379,0.063,147.23,147.14,81.0]
[1740769673581,6.5064,147.22,147.14,81.0]
[1740769673762,1.5356,147.2,147.14,81.0]
[1740769675505,0.14216157,147.19,147.13,0.03]
[1740769680590,0.14216157,147.17,147.13,0.03]
[1740769680794,82.26792401,147.17,147.11,0.03]
[1740769680993,80.84216157,147.17,147.11,0.03]
[1740769681389,80.7,147.17,147.11,0.03]
[1740769681991,1.5356,147.2,147.11,88.09]
[1740769682194,1.5356,147.2,147.11,226.09]
[1740769682497,1.5356,147.2,147.11,232.8875]
[1740769682702,1.5356,147.2,147.12,1.42668167]
[1740769683092,1.5356,147.2,147.13,312.0]
[1740769683594,6.5064,147.22,147.14,1.42659908]
[1740769683779,6.5064,147.22,147.14,81.0]
[1740769684898,0.063,147.23,147.14,227.22264045]
[1740769685102,0.063,147.23,147.14,225.7959]
[1740769685400,0.063,147.23,147.15,1.4263462]
[1740769685600,0.063,147.23,147.16,0.14216157]
[1740769685798,0.063,147.23,147.17,8.48608998]
[1740769685978,0.063,147.23,147.17,227.48608998]
[1740769686184,0.063,147.23,147.21,20.0]
[1740769686402,0.063,147.23,147.21,239.0]
[1740769686614,0.063,147.23,147.21,557.7929]
[1740769687083,0.063,147.23,147.22,1.42581859]
[1740769687496,0.063,147.23,147.22,220.56798016]
[1740769687788,0.063,147.23,147.22,219.14216157]
[1740769687998,0.063,147.23,147.22,223.14216157]
[1740769688681,0.063,147.27,147.26,0.14216157]
[1740769688905,0.063,147.27,147.26,226.20216157]
[1740769689406,0.063,147.27,147.26,226.06]
[1740769689789,0.063,147.27,147.26,226.20216157]
[1740769690500,0.063,147.27,147.26,538.20216157]
[1740769691089,0.063,147.27,147.26,538.06]
[1740769691611,0.063,147.27,147.26,540.06]
[1740769692090,0.063,147.27,147.26,538.06]
[1740769692486,0.063,147.27,147.26,544.8507]
[1740769692688,0.063,147.27,147.26,546.8507]
[1740769692904,0.063,147.27,147.26,546.99286157]
[1740769693108,0.063,147.27,147.26,540.20216157]
[1740769693307,0.063,147.27,147.26,538.06]
[1740769693626,0.063,147.27,147.26,540.06]
[1740769693814,0.063,147.27,147.26,226.06]
[1740769693996,0.063,147.27,147.26,228.20216157]
[1740769694309,0.063,147.27,147.26,234.99286157]
[1740769694512,0.063,147.27,147.26,236.99286157]
[1740769694735,0.063,147.27,147.26,234.99286157]
[1740769694893,0.063,147.27,147.26,228.06]
[1740769695091,0.063,147.27,147.26,226.06]
[1740769696102,0.063,147.27,147.26,219.0]
[1740769696410,0.063,147.27,147.26,81.0]
[1740769697005,0.063,147.27,147.26,219.0]
[1740769697521,0.063,147.27,147.26,225.7907]
[1740769697817,0.063,147.27,147.26,225.93286157]
[1740769698017,0.063,147.27,147.26,227.93286157]
[1740769699803,0.063,147.27,147.26,539.93286157]
[1740769701318,0.063,147.27,147.26,537.93286157]
[1740769701521,0.063,147.27,147.26,537.7907]
[1740769701725,0.063,147.27,147.26,81.0]
[1740769702242,0.063,147.27,147.26,225.7907]
[1740769703123,0.063,147.27,147.26,81.0]
[1740769703639,0.063,147.27,147.26,87.7907]
[1740769704016,0.063,147.27,147.26,81.0]
[1740769704406,0.063,147.27,147.24,81.0]
[1740769706642,0.063,147.27,147.22,7.04]
[1740769706643,0.14216157,147.25,147.18,81.0]
[1740769707037,0.14216157,147.23,147.14,226.04]
[1740769707542,0.14216157,147.23,147.14,88.04]
[1740769707840,6.1947,147.2,147.14,81.0]
[1740769708009,1.6093,147.18,147.14,81.0]
[1740769708214,1.6093,147.18,147.11,81.03]
[1740769709127,1.6093,147.18,147.11,225.8274]
[1740769709528,1.6093,147.18,147.11,219.03]
[1740769709726,6.7948,147.17,147.11,81.03]
[1740769712341,6.7948,147.17,147.11,0.03]
[1740769712342,0.14216157,147.16,147.11,0.03]
[1740769712769,80.84216157,147.16,147.11,0.03]
[1740769714178,1.6093,147.18,147.11,0.03]
[1740769714672,1.6093,147.18,147.11,219.03]
[1740769715168,1.6093,147.18,147.11,81.03]
[1740769716243,1.6093,147.18,147.11,87.8275]
[1740769717645,8.4037,147.18,147.11,81.03]
[1740769717965,0.14216157,147.17,147.11,81.03]
[1740769718168,6.7953,147.16,147.11,81.03]
[1740769718460,80.84216157,147.15,147.11,0.03]
[1740769720186,6.7962,147.14,147.11,0.03]
[1740769720487,6.28906157,147.12,147.11,0.03]
[1740769720985,6.28906157,147.12,147.04,138.0]
[1740769720986,1.579,147.1,147.04,81.0]
[1740769721864,0.14216157,147.09,147.04,81.0]
[1740769722180,0.14216157,147.07,147.01,81.0]
[1740769722508,0.14216157,147.07,146.99,0.03]
[1740769722509,2.14216157,146.97,146.96,0.03]
[1740769722792,2.14216157,146.97,146.91,0.03]
[1740769722793,0.14216157,146.96,146.91,0.03]
[1740769723003,0.14216157,146.94,146.91,0.03]
[1740769723593,0.14216157,146.92,146.91,0.03]
[1740769723989,3.5101,146.95,146.91,0.03]
[1740769723990,2.93586244,146.95,146.91,0.03]
[1740769724189,6.8059,146.93,146.91,0.03]
[1740769726071,1.56792401,146.92,146.91,0.0001]
[1740769726268,8.37432401,146.92,146.91,0.0001]
[1740769726486,6.94856157,146.92,146.91,0.0001]
[1740769726795,6.8064,146.92,146.91,0.0001]
[1740769727522,6.8054,146.94,146.91,0.0001]
[1740769729593,121.345,146.95,146.91,0.0001]
[1740769730217,6.8045,146.96,146.91,0.0001]
[1740769731116,6.8045,146.96,146.91,79.3335]
[1740769732323,6.94526157,146.99,146.91,79.3335]
[1740769732487,25.37892401,146.99,146.91,79.3335]
[1740769732692,59.39482401,146.99,146.91,79.3335]
[1740769733297,6.8031,146.99,146.91,79.3335]
[1740769733713,0.063,146.96,146.91,79.3335]
[1740769734627,0.20516157,146.96,146.91,79.3335]
[1740769734917,80.90516157,146.96,146.91,0.0001]
[1740769735701,0.063,146.96,146.91,0.0001]
[1740769735929,0.063,146.96,146.91,231.2003]
[1740769736316,0.063,146.96,146.91,536.3935]
[1740769737022,0.063,146.96,146.91,543.2002]
[1740769738197,0.063,146.96,146.92,0.14216157]
[1740769738398,0.063,146.96,146.94,0.14216157]
[1740769738626,0.063,146.96,146.95,13.42616157]